bitfinex-derivatives/quotes_SOLF0:USTF0_20250527
["timestamp","ask_amount","ask_price","bid_price","bid_amount"]
[1748345760566,2.81081181,176.42,176.41,5.6665]
[1748345760769,4.9e-07,176.42,176.41,5.6665]
[1748345761165,2.81081181,176.42,176.41,5.6665]
[1748345761467,4.9e-07,176.42,176.41,6.23277095]
[1748345761666,4.9e-07,176.42,176.41,5.6665]
[1748345762170,2.81054992,176.42,176.41,6.23277095]
[1748345762354,4.9e-07,176.42,176.41,5.6665]
[1748345762961,4.9e-07,176.42,176.4,0.56627095]
[1748345763157,2.81104412,176.41,176.39,0.605741]
[1748345763362,4.9e-07,176.42,176.39,0.605741]
[1748345763563,4.9e-07,176.42,176.4,5.6668]
[1748345764463,2.81103224,176.41,176.4,5.6668]
[1748345764669,4.9e-07,176.42,176.4,5.6668]
[1748345765164,4.9e-07,176.42,176.39,6.272941]
[1748345765367,4.9e-07,176.42,176.39,0.0391753]
[1748345765864,5.66650049,176.42,176.39,0.0391753]
[1748345766467,2.81105183,176.41,176.39,0.0391753]
[1748345766671,2.81105183,176.4,176.39,5.7063753]
[1748345767368,5.66650049,176.42,176.4,5.6668]
[1748345767970,2.81089969,176.41,176.4,5.6668]
[1748345768176,5.66650049,176.42,176.39,5.7062753]
[1748345768963,2.81090956,176.41,176.4,5.6669]
[1748345769161,4.9e-07,176.42,176.4,5.6669]
[1748345769360,4.9e-07,176.42,176.39,0.0391753]
[1748345769564,4.9e-07,176.42,176.4,5.6669]
[1748345769960,4.9e-07,176.42,176.41,5.6665]
[1748345770163,2.81090142,176.42,176.39,0.6064408]
[1748345770462,4.9e-07,176.42,176.4,5.6666]
[1748345771064,2.81090093,176.41,176.4,5.6666]
[1748345771271,4.9e-07,176.42,176.39,0.6064408]
[1748345772972,2.81090012,176.41,176.4,5.6666]
[1748345773168,2.81090012,176.41,176.39,0.6064408]
[1748345773370,4.9e-07,176.42,176.39,0.6064408]
[1748345773670,2.81090191,176.41,176.4,5.6669]
[1748345774168,5.66630049,176.42,176.4,5.6669]
[1748345774369,2.81093034,176.41,176.4,5.6669]
[1748345774571,2.81092917,176.41,176.4,5.6669]
[1748345774774,5.66630049,176.42,176.4,5.6669]
[1748345776373,5.66630049,176.42,176.39,6.27407577]
[1748345777069,2.81093462,176.41,176.39,6.27407577]
[1748345777382,5.66630049,176.42,176.39,6.27411056]
[1748345777678,4.9e-07,176.42,176.39,0.60701056]
[1748345777864,2.81094165,176.41,176.39,0.60701056]
[1748345778072,29.08,176.41,176.39,0.0391753]
[1748345778678,5.6669,176.4,176.39,0.0391753]
[1748345779271,8.47832966,176.4,176.39,0.0391753]
[1748345779475,5.6669,176.4,176.39,0.0391753]
[1748345779681,8.47835354,176.4,176.39,0.0391753]
[1748345779875,8.47835593,176.4,176.39,0.0391753]
[1748345780068,5.6669,176.4,176.39,0.0391753]
[1748345780778,8.4782274,176.4,176.39,0.0391753]
[1748345780978,8.47822561,176.4,176.39,0.0391753]
[1748345781274,5.6682,176.36,176.35,0.56793473]
[1748345781474,2.81135386,176.36,176.35,0.56793473]
[1748345781680,2.81135564,176.36,176.35,0.56793473]
[1748345781980,5.6681,176.37,176.35,0.56793473]
[1748345782684,5.70907706,176.38,176.35,5.6684]
[1748345783768,2.81233619,176.37,176.35,5.6684]
[1748345783970,2.81233619,176.36,176.35,5.6684]
[1748345784275,5.70907706,176.38,176.35,5.6684]
[1748345784472,2.81233619,176.37,176.35,5.6684]
[1748345784778,5.70907706,176.38,176.35,5.6684]
[1748345785674,0.04147706,176.38,176.34,0.59206626]
[1748345785883,2.80762039,176.37,176.36,0.55166769]
[1748345786078,2.80754704,176.37,176.36,6.21976769]
[1748345786280,2.80753606,176.37,176.36,0.55166769]
[1748345786483,0.04147706,176.38,176.36,0.55166769]
[1748345786682,0.04147706,176.38,176.37,5.6678]
[1748345786883,0.04147706,176.38,176.37,6.21911062]
[1748345787086,0.04147706,176.38,176.37,5.6678]
[1748345787486,0.04147706,176.38,176.36,6.21931062]
[1748345787688,0.04147706,176.38,176.36,5.668]
[1748345787689,2.81083351,176.37,176.36,5.668]
[1748345787891,2.81087052,176.37,176.35,0.55128741]
[1748345788189,0.04147706,176.38,176.35,0.55128741]
[1748345788393,2.81084616,176.37,176.35,0.55128741]
[1748345788682,0.04147706,176.38,176.35,6.21938741]
[1748345788887,2.81090702,176.37,176.35,6.21938741]
[1748345789087,0.04147706,176.38,176.35,0.55128741]
[1748345789586,0.04147706,176.38,176.34,0.04039857]
[1748345789587,0.04147706,176.38,176.34,0.59168598]
[1748345789887,2.81107673,176.37,176.35,5.6683]
[1748345790083,0.04147706,176.38,176.34,0.59168598]
[1748345790284,5.6678,176.37,176.34,6.26028598]
[1748345790586,0.04147706,176.38,176.34,6.26028598]
[1748345792486,2.81094668,176.35,176.34,6.26023566]
[1748345792787,5.70907706,176.38,176.35,5.6684]
[1748345793789,2.81094265,176.37,176.35,5.6684]
[1748345793985,5.70907706,176.38,176.35,5.6684]
[1748345794790,0.04147706,176.38,176.35,5.6684]
[1748345795090,2.81574192,176.37,176.36,5.6678]
[1748345795294,0.04147706,176.38,176.36,5.6678]
[1748345796688,2.81738873,176.37,176.36,5.6678]
[1748345796886,0.04147706,176.38,176.36,5.6678]
[1748345797495,2.81744928,176.37,176.36,5.6678]
[1748345797795,2.81744926,176.37,176.36,5.6678]
[1748345798293,0.04147706,176.38,176.36,5.6678]
[1748345798796,2.81744858,176.37,176.36,5.6678]
[1748345799495,5.63491175,176.37,176.36,5.6678]
[1748345799994,5.63491175,176.37,176.34,0.59165238]
[1748345799995,2.81744858,176.37,176.34,0.59165238]
[1748345800295,2.81745302,176.36,176.34,0.59165238]
[1748345800590,5.6682,176.36,176.34,0.04039857]
[1748345801094,2.81639423,176.35,176.34,0.04039857]
[1748345801389,2.81639018,176.35,176.34,0.59165238]
[1748345801594,2.8163908,176.35,176.34,0.59165238]
[1748345801790,8.48534858,176.37,176.34,0.5917449]
[1748345802096,2.8046991,176.36,176.34,0.5917449]
[1748345802391,8.48534858,176.37,176.34,0.04039857]
[1748345803397,2.80654698,176.36,176.34,0.5917449]
[1748345803592,8.48534858,176.37,176.34,0.5917449]
[1748345803792,2.80653491,176.36,176.34,0.5917449]
[1748345803999,8.48534858,176.37,176.34,0.5917449]
[1748345805302,8.48534858,176.37,176.34,0.59195261]
[1748345805495,2.80654698,176.36,176.34,0.59195261]
[1748345805690,2.80838734,176.35,176.34,0.59195261]
[1748345806197,5.668,176.36,176.34,0.59195261]
[1748345806404,2.80838734,176.35,176.34,0.59195261]
[1748345806599,5.61677468,176.35,176.34,0.59195261]
[1748345807099,2.80838734,176.35,176.34,0.59195261]
[1748345807299,5.61677407,176.35,176.34,0.59195261]
[1748345808100,11.28514909,176.35,176.34,0.59195261]
[1748345808791,8.47668734,176.35,176.34,0.04039857]
[1748345808996,11.28621309,176.35,176.34,0.59258389]
[1748345809694,11.28622516,176.35,176.34,0.59258389]
[1748345810606,11.28704123,176.35,176.34,0.59258389]
[1748345810791,2.80838734,176.35,176.34,0.59258389]
[1748345811096,5.61864443,176.35,176.34,0.59258389]
[1748345811498,2.80838734,176.35,176.34,0.59258389]
[1748345811694,11.28704459,176.35,176.34,0.59258389]
[1748345811901,11.28717069,176.35,176.34,0.04039857]
[1748345812099,8.47678734,176.35,176.34,0.04039857]
[1748345812399,11.2964761,176.35,176.34,0.04039857]
[1748345812603,11.29647607,176.35,176.34,0.04039857]
[1748345813500,11.2933014,176.35,176.34,0.04039857]
[1748345813695,8.47678734,176.35,176.34,0.04039857]
[1748345813894,11.2933014,176.35,176.34,0.04039857]
[1748345815101,8.47678734,176.35,176.34,0.04039857]
[1748345815401,11.29344353,176.35,176.34,0.04039857]
[1748345815800,11.29213694,176.35,176.34,0.04039857]
[1748345817199,11.29220798,176.35,176.34,0.04039857]
[1748345817703,11.29122636,176.35,176.34,0.04039857]
[1748345818104,8.47678734,176.35,176.34,0.04039857]
[1748345818799,11.29122636,176.35,176.34,0.04039857]
[1748345819008,8.47678734,176.35,176.34,0.04039857]
[1748345819600,11.29122636,176.35,176.34,0.04039857]
[1748345820307,8.47678734,176.35,176.34,0.04039857]
[1748345821496,11.29123923,176.35,176.34,0.04039857]
[1748345821698,8.47678734,176.35,176.34,0.04039857]
[1748345821899,11.69758452,176.35,176.34,0.04039857]
[1748345823106,14.51203702,176.35,176.34,0.04039857]
[1748345823303,11.69758452,176.35,176.34,0.04039857]
[1748345823708,14.51202501,176.35,176.34,0.04039857]
[1748345824006,11.69758452,176.35,176.34,0.04039857]
[1748345824605,14.51202501,176.35,176.34,0.04039857]
[1748345824807,11.69758452,176.35,176.34,0.04039857]
[1748345825206,8.84362501,176.35,176.34,0.04039857]
[1748345825405,5.62285121,176.35,176.34,0.04039857]
[1748345825606,2.80838734,176.35,176.34,0.04039857]
[1748345827112,5.62288876,176.35,176.34,0.04039857]
[1748345827307,11.29111592,176.35,176.34,0.04039857]
[1748345827710,8.47668734,176.35,176.34,0.04039857]
[1748345828111,11.2911846,176.35,176.34,0.04039857]
[1748345828513,11.29118471,176.35,176.34,0.04039857]
[1748345829507,11.29127773,176.35,176.34,0.04039857]
[1748345829908,11.29128189,176.35,176.34,0.04039857]
[1748345830408,11.29128128,176.35,176.34,0.04039857]
[1748345830811,11.29074719,176.35,176.34,0.04039857]
[1748345831117,11.29069922,176.35,176.34,0.04039857]
[1748345831615,8.47668734,176.35,176.34,0.04039857]
[1748345831910,11.29067701,176.35,176.34,0.04039857]
[1748345832115,11.29068866,176.35,176.34,0.04039857]
[1748345832716,5.62228109,176.35,176.34,0.04039857]
[1748345832912,2.80838734,176.35,176.34,0.04039857]
[1748345833214,5.62212312,176.35,176.34,0.04039857]
[1748345833412,2.80838734,176.35,176.34,0.04039857]
[1748345834009,5.62211897,176.35,176.34,0.04039857]
[1748345834414,11.29041897,176.35,176.34,0.04039857]
[1748345835119,8.47668734,176.35,176.34,0.04039857]
[1748345835813,11.69748452,176.35,176.34,0.04039857]
[1748345836117,14.51149144,176.35,176.34,0.04039857]
[1748345836415,11.69748452,176.35,176.34,0.04039857]
[1748345836811,14.51162186,176.35,176.34,0.04039857]
[1748345837013,11.69748452,176.35,176.34,0.04039857]
[1748345837214,8.47668734,176.35,176.34,0.04039857]
[1748345837817,11.29081992,176.35,176.34,0.04039857]
[1748345838420,11.29043151,176.35,176.34,0.04039857]
[1748345839109,11.29042736,176.35,176.34,0.04039857]
[1748345839517,11.29042943,176.35,176.34,0.04039857]
[1748345839713,11.2904294,176.35,176.34,0.04039857]
[1748345839917,8.47668734,176.35,176.34,0.04039857]
[1748345840120,11.29043627,176.35,176.34,0.04039857]
[1748345840423,11.29043212,176.35,176.34,0.04039857]
[1748345840717,11.2901919,176.35,176.34,0.04039857]
[1748345841314,11.29019605,176.35,176.34,0.04039857]
[1748345841511,11.2901919,176.35,176.34,0.04039857]
[1748345841718,8.47668734,176.35,176.34,0.04039857]
[1748345842122,11.2901919,176.35,176.34,0.04039857]
[1748345842323,8.47668734,176.35,176.34,0.04039857]
[1748345842818,11.29019605,176.35,176.34,0.04039857]
[1748345843416,8.47668734,176.35,176.34,0.04039857]
[1748345844424,11.29020021,176.35,176.34,0.04039857]
[1748345844622,8.47668734,176.35,176.34,0.04039857]
[1748345844822,11.29019605,176.35,176.34,0.04039857]
[1748345845018,8.47668734,176.35,176.34,0.04039857]
[1748345845420,11.29019605,176.35,176.34,0.04039857]
[1748345845629,8.47668734,176.35,176.34,0.04039857]
[1748345846124,11.29026077,176.35,176.34,0.04039857]
[1748345846321,8.47668734,176.35,176.34,0.04039857]
[1748345846623,14.51108065,176.35,176.34,0.04039857]
[1748345846814,14.51133993,176.35,176.34,0.04039857]
[1748345847020,11.69748452,176.35,176.34,0.04039857]
[1748345847421,14.51133628,176.35,176.34,0.04039857]
[1748345847622,5.6701,176.3,176.28,0.7560362]
[1748345847924,2.81396093,176.29,176.28,0.7560362]
[1748345848116,2.81396093,176.29,176.27,0.7560362]
[1748345848317,5.6703,176.29,176.27,0.7560362]
[1748345848519,2.81398928,176.28,176.27,0.7560362]
[1748345848919,2.81400906,176.28,176.26,0.79493901]
[1748345849225,5.70587256,176.3,176.26,0.79493901]
[1748345849426,5.70587256,176.3,176.28,0.55361727]
[1748345849727,2.81400911,176.29,176.28,0.55361727]
[1748345850821,2.81324746,176.29,176.28,0.55361727]
[1748345851021,2.81324746,176.29,176.28,0.55364538]
[1748345851418,2.81324746,176.29,176.27,3.97683338]
[1748345851620,0.03577256,176.3,176.27,3.97683338]
[1748345851820,2.81298681,176.29,176.27,3.97683338]
[1748345852027,0.03577256,176.3,176.28,0.7560362]
[1748345852324,0.03577256,176.3,176.29,6.4263362]
[1748345853023,2.84871479,176.3,176.29,6.4263362]
[1748345853224,0.03577256,176.3,176.29,6.4263362]
[1748345853623,2.84933559,176.3,176.29,6.4263362]
[1748345854432,2.84960316,176.3,176.29,6.4263362]
[1748345855030,0.03577256,176.3,176.29,0.7560362]
[1748345855325,0.03577256,176.3,176.28,0.7560362]
[1748345855831,2.81498438,176.29,176.28,0.7560362]
[1748345856027,2.81498552,176.29,176.28,0.7560362]
[1748345856226,2.8149912,176.29,176.28,0.7560362]
[1748345856529,5.70587256,176.3,176.28,0.7560362]
[1748345856726,2.80876922,176.29,176.28,0.7560362]
[1748345856928,5.6703,176.29,176.27,0.7560362]
[1748345857125,2.80895527,176.28,176.27,0.7560362]
[1748345857322,5.6703,176.29,176.27,0.7560362]
[1748345857528,2.80895527,176.28,176.27,0.7560362]
[1748345857831,2.80931635,176.28,176.27,0.7560362]
[1748345858022,5.6703,176.29,176.27,0.7560362]
[1748345858431,2.8098008,176.28,176.26,0.79493901]
[1748345858627,5.6703,176.29,176.26,0.79493901]
[1748345858835,2.809801,176.28,176.26,6.46613901]
[1748345859128,0.03577256,176.3,176.26,0.79493901]
[1748345859521,0.03577256,176.3,176.29,0.5538666]
[1748345860328,5.70577256,176.3,176.29,0.5538666]
[1748345860731,8.51543616,176.3,176.29,0.5538666]
[1748345861033,5.70577256,176.3,176.29,0.5538666]
[1748345861436,5.6703,176.29,176.26,6.46613901]
[1748345861628,2.8096642,176.28,176.26,0.79493901]
[1748345861936,0.03577256,176.3,176.26,0.79493901]
[1748345862125,5.6705,176.29,176.26,0.79493901]
[1748345862330,5.6705,176.29,176.28,0.55383235]
[1748345863528,8.48003259,176.29,176.28,0.55383235]
[1748345863731,5.6705,176.29,176.27,0.55383235]
[1748345864139,5.6706,176.28,176.27,0.55383235]
[1748345864432,2.80974514,176.28,176.27,0.55383235]
[1748345864631,0.03577256,176.3,176.27,0.55383235]
[1748345864831,3.25656974,176.3,176.26,0.03890281]
[1748345865030,3.25656974,176.3,176.26,0.59300499]
[1748345865232,2.80983854,176.29,176.26,0.59300499]
[1748345865435,5.6709,176.28,176.26,0.59300499]
[1748345865634,2.80988487,176.27,176.26,0.03890281]
[1748345865830,5.6709,176.28,176.26,0.59310382]
[1748345866230,2.80988487,176.27,176.26,0.59310382]
[1748345866430,2.80988309,176.27,176.26,0.59310382]
[1748345866638,5.6709,176.28,176.26,0.59310382]
[1748345867130,2.80983854,176.27,176.26,0.59310382]
[1748345867533,5.6709,176.28,176.26,0.59310382]
[1748345867730,2.80983854,176.27,176.26,0.59310382]
[1748345868028,5.6709,176.28,176.26,0.59310382]
[1748345868238,2.80983854,176.27,176.26,0.59310382]
[1748345868444,2.80983854,176.27,176.26,0.59262512]
[1748345868636,2.80982596,176.27,176.26,0.59262512]
[1748345869333,0.03577256,176.3,176.26,0.59262512]
[1748345869534,2.80982615,176.29,176.26,0.59262512]
[1748345869737,5.6708,176.28,176.26,0.59262512]
[1748345870237,2.80985011,176.27,176.26,0.59262512]
[1748345870537,5.6707,176.28,176.26,0.59262512]
[1748345870738,2.8098495,176.27,176.26,0.59262512]
[1748345870942,5.6707,176.28,176.26,0.59262512]
[1748345871134,5.6707,176.28,176.26,0.03890281]
[1748345871640,5.6707,176.28,176.26,0.59262512]
[1748345871942,5.6707,176.28,176.26,0.03890281]
[1748345872237,5.6707,176.28,176.26,0.57655061]
[1748345872439,2.80983338,176.27,176.26,0.03890281]
[1748345872643,2.80983338,176.27,176.26,0.57655061]
[1748345872644,2.80983753,176.27,176.26,0.57655061]
[1748345872840,2.80966509,176.27,176.26,0.57655061]
[1748345873031,0.03577256,176.3,176.26,8.93969999]
[1748345873238,2.80838734,176.35,176.29,3.22079718]
[1748345873436,8.47678734,176.35,176.31,3.75792556]
[1748345873642,2.80838734,176.35,176.31,3.75792556]
[1748345873850,2.80838734,176.35,176.32,0.53712838]
[1748345874051,2.80838734,176.35,176.34,5.6687]
[1748345874246,2.80838734,176.35,176.34,6.20582838]
[1748345875252,2.80838734,176.35,176.34,5.6687]
[1748345876057,2.80838734,176.35,176.34,6.4247362]
[1748345876354,2.80838734,176.35,176.34,5.6687]
[1748345878271,2.80838734,176.35,176.34,6.4247362]
[1748345878507,2.80838734,176.35,176.34,5.6687]
[1748345880155,2.80838734,176.35,176.33,5.70965287]
[1748345880350,2.80838734,176.35,176.34,0.53553884]
[1748345880958,2.80838734,176.35,176.33,6.24529171]
[1748345881660,2.80838734,176.35,176.33,0.57629171]
[1748345882258,2.80838734,176.35,176.33,6.24519171]
[1748345882450,5.6687,176.34,176.33,0.57613928]
[1748345882657,5.6687,176.34,176.33,0.04075287]
[1748345883153,8.47698734,176.35,176.33,0.04075287]
[1748345884753,5.6687,176.34,176.33,0.04075287]
[1748345885157,8.32901476,176.34,176.33,0.04075287]
[1748345885361,2.66035025,176.34,176.33,0.04075287]
[1748345885565,8.47688734,176.35,176.33,0.04075287]
[1748345885755,2.66007471,176.34,176.33,0.04075287]
[1748345886068,8.3287842,176.34,176.33,0.04075287]
[1748345886364,5.6687,176.34,176.33,0.04075287]
[1748345886754,2.66015659,176.34,176.33,0.04075287]
[1748345887065,8.47688734,176.35,176.33,0.04075287]
[1748345887654,2.66027451,176.34,176.33,0.04075287]
[1748345887858,8.47688734,176.35,176.33,0.04075287]
[1748345888865,2.66027833,176.34,176.33,0.04075287]
[1748345889062,8.47688734,176.35,176.33,0.04075287]
[1748345889459,2.66026179,176.34,176.33,0.04075287]
[1748345889857,8.47688734,176.35,176.33,0.04075287]
[1748345891162,5.6687,176.34,176.33,0.04075287]
[1748345891369,2.80838734,176.35,176.33,0.04075287]
[1748345892156,2.80838734,176.35,176.33,0.57676353]
[1748345892769,2.80838734,176.35,176.34,5.6687]
[1748345895367,5.6687,176.34,176.33,0.04075287]
[1748345896464,8.32032899,176.34,176.33,0.04075287]
[1748345896772,2.65249662,176.34,176.27,0.53583121]
[1748345897070,5.671,176.27,176.26,0.53583121]
[1748345897372,32.6891,176.33,176.26,0.53583121]
[1748345897681,0.04124059,176.31,176.28,0.04111556]
[1748345897975,0.04124059,176.31,176.29,5.6701]
[1748345898665,0.04124059,176.31,176.28,0.04111556]
[1748345898966,0.04124059,176.31,176.28,5.71151556]
[1748345899362,5.71094059,176.31,176.28,0.04111556]
[1748345899969,5.67,176.3,176.28,0.04111556]
[1748345900865,0.04124059,176.31,176.28,0.04111556]
[1748345901567,0.04124059,176.31,176.28,0.57705292]
[1748345901967,0.04124059,176.31,176.29,29.25593736]
[1748345902565,0.04124059,176.31,176.29,0.53593736]
[1748345902779,0.04124059,176.31,176.28,0.04111556]
[1748345902780,0.04124059,176.31,176.28,0.57705292]
[1748345903279,0.04124059,176.31,176.28,0.57739366]
[1748345903475,0.04124059,176.31,176.28,0.04111556]
[1748345904181,5.71114059,176.31,176.28,5.71161556]
[1748345905378,0.04124059,176.31,176.29,5.6703]
[1748345908073,0.04124059,176.31,176.3,5.67]
[1748345910568,0.04124059,176.31,176.29,5.6702]
[1748345911277,0.04124059,176.31,176.3,5.67]
[1748345912983,0.04124059,176.31,176.3,6.20579413]
[1748345913282,0.04124059,176.31,176.3,5.67]
[1748345915775,0.04124059,176.31,176.3,6.4260362]
[1748345916174,0.04124059,176.31,176.3,0.7560362]
[1748345916375,0.04124059,176.31,176.3,0.53649807]
[1748345916883,0.04124059,176.31,176.3,6.20649807]
[1748345920179,0.04124059,176.31,176.3,0.53649807]
[1748345920380,0.04124059,176.31,176.28,0.04111556]
[1748345920581,5.71114059,176.31,176.28,0.04111556]
[1748345921482,5.71114059,176.31,176.28,5.71141556]
[1748345922679,5.6701,176.3,176.28,0.04111556]
[1748345923383,0.04124059,176.31,176.28,0.04111556]
[1748345924084,0.04124059,176.31,176.3,5.67]
[1748345925885,0.04124059,176.31,176.29,5.6703]
[1748345926082,0.04124059,176.31,176.28,0.04111556]
[1748345927487,5.6702,176.3,176.28,0.04111556]
[1748345927985,5.6703,176.29,176.28,0.04111556]
[1748345931691,5.6701,176.3,176.28,0.04111556]
[1748345931892,0.04124059,176.31,176.28,0.04111556]
[1748345932389,5.71104059,176.31,176.28,5.71151556]
[1748345932794,0.04124059,176.31,176.28,5.71151556]
[1748345933996,5.67,176.3,176.28,5.71151556]
[1748345934598,5.71104059,176.31,176.28,5.71151556]
[1748345934901,0.04124059,176.31,176.28,5.71151556]
[1748345936299,5.6702,176.3,176.28,5.71151556]
[1748345936903,5.71104059,176.31,176.28,5.71151556]
[1748345938805,5.6701,176.3,176.28,5.71151556]
[1748345939208,0.04124059,176.31,176.28,0.04111556]
[1748345939403,5.6703,176.29,176.28,0.04111556]
[1748345941510,5.6701,176.3,176.28,0.04111556]
[1748345942114,5.6703,176.29,176.28,0.04111556]
[1748345942413,0.04124059,176.31,176.28,0.04111556]
[1748345943012,5.67,176.3,176.28,0.04111556]
[1748345943206,0.04124059,176.31,176.28,0.04111556]
[1748345943616,5.6703,176.29,176.28,0.04111556]
[1748345946509,0.04124059,176.31,176.28,0.04111556]
[1748345946913,0.04124059,176.31,176.3,5.67]
[1748345952420,0.04124059,176.31,176.3,6.38797586]
[1748345952620,0.04124059,176.31,176.3,5.67]
[1748345954721,4.059e-05,176.31,176.3,5.67]
[1748345957328,4.059e-05,176.31,176.3,6.38698108]
[1748345958225,4.059e-05,176.31,176.3,5.67]
[1748345958434,4.059e-05,176.31,176.3,6.38686138]
[1748345958927,4.059e-05,176.31,176.3,5.67]
[1748345962430,4.059e-05,176.31,176.3,6.38688848]
[1748345963531,4.059e-05,176.31,176.3,6.38639466]
[1748345967533,1.8837,176.41,176.29,29.95649386]
[1748345967726,1.8837,176.41,176.32,5.0287798]
[1748345967936,32.8134,176.42,176.33,28.74]
[1748345968131,2.0646,176.42,176.33,28.74]
[1748345968327,28.74,176.45,176.33,28.74]
[1748345968533,0.03854475,176.41,176.37,5.70911899]
[1748345969034,5.667,176.4,176.37,0.04161899]
[1748345969433,0.03854475,176.41,176.37,0.04161899]
[1748345969633,5.70514475,176.41,176.37,5.70911899]
[1748345971540,0.03854475,176.41,176.37,0.04161899]
[1748345972338,0.03854475,176.41,176.38,5.6671]
[1748345973435,0.03854475,176.41,176.39,5.6671]
[1748345975338,5.70504475,176.41,176.38,5.6673]
[1748345976142,5.6668,176.4,176.37,5.70921899]
[1748345976344,0.03854475,176.41,176.37,0.04161899]
[1748345977337,5.70524475,176.41,176.38,5.6674]
[1748345977544,0.03854475,176.41,176.37,0.04161899]
[1748345977836,0.03854475,176.41,176.37,29.02161899]
[1748345978030,0.03854475,176.41,176.4,5.6668]
[1748345978633,4.475e-05,176.41,176.4,5.6668]
[1748345979342,28.98,176.51,176.39,5.0287798]
[1748345980241,5.70231515,176.47,176.43,5.70209912]
[1748345980629,5.70231515,176.47,176.43,0.03659912]
[1748345981337,5.70231515,176.47,176.44,5.6653]
[1748345981737,0.03761515,176.47,176.43,0.03659912]
[1748345981943,0.03761515,176.47,176.45,5.6649]
[1748345982138,0.03761515,176.47,176.43,0.03659912]
[1748345982942,0.03761515,176.47,176.46,5.6648]
[1748345984546,0.03761515,176.47,176.43,0.03659912]
[1748345986947,0.03761515,176.47,176.45,5.665]
[1748345988147,0.03761515,176.47,176.46,5.6649]
[1748345989044,0.03761515,176.47,176.43,0.03659912]
[1748345989045,0.03761515,176.47,176.45,5.6651]
[1748345989847,5.6651,176.46,176.43,0.03659912]
[1748345990447,5.6651,176.46,176.43,5.70219912]
[1748345990648,0.03761515,176.47,176.43,0.03659912]
[1748345991148,5.6655,176.44,176.43,0.03659912]
[1748345992444,5.6665,176.41,176.39,5.6671]
[1748345992650,35.1484,176.46,176.38,28.98]
[1748345993044,5.6668,176.4,176.37,5.6675]
[1748345993541,5.70515729,176.4,176.37,5.70496531]
[1748345995448,0.03835729,176.4,176.37,0.03746531]
[1748345996043,5.6674,176.38,176.37,0.03746531]
[1748345996646,5.6685,176.35,176.32,5.6693]
[1748345997246,5.6685,176.35,176.3,0.53443032]
[1748345997448,5.6682,176.36,176.33,5.669]
[1748345997848,0.03711834,176.36,176.33,0.04131714]
[1748345998448,0.03711834,176.36,176.34,5.6685]
[1748346000353,0.03711834,176.36,176.35,5.6684]
[1748346001046,0.03711834,176.36,176.34,5.6686]
[1748346001852,0.03711834,176.36,176.33,0.04131714]
[1748346002441,0.03711834,176.36,176.35,5.6684]
[1748346006048,0.03711834,176.36,176.35,6.20362001]
[1748346006650,1.834e-05,176.36,176.35,6.20362001]
[1748346006849,31.4338,176.45,176.33,4.87359645]
[1748346007057,31.4338,176.45,176.37,0.53516759]
[1748346007255,31.4338,176.45,176.41,5.6663]
[1748346007959,31.47437991,176.45,176.41,5.70380259]
[1748346008257,31.47437991,176.45,176.41,0.03750259]
[1748346008657,5.6658,176.43,176.41,0.03750259]
[1748346009060,31.47437991,176.45,176.37,29.48]
[1748346009256,31.47437991,176.45,176.33,2.063]
[1748346009257,1.9011,176.42,176.35,0.53516759]
[1748346009555,29.48,176.41,176.35,0.53516759]
[1748346009856,29.48,176.41,176.33,29.48]
[1748346009857,5.6682,176.36,176.33,30.01516759]
[1748346010053,31.4214,176.41,176.33,30.01548441]
[1748346010253,0.03609157,176.36,176.33,29.51953253]
[1748346010449,0.03609157,176.36,176.33,30.05501694]
[1748346010657,0.03609157,176.36,176.35,5.6682]
[1748346011060,0.03609157,176.36,176.35,6.20368441]
[1748346011761,0.03609157,176.36,176.35,5.6682]
[1748346014859,0.03609157,176.36,176.35,6.20368441]
[1748346015265,9.157e-05,176.36,176.35,6.20368441]
[1748346015662,9.157e-05,176.36,176.35,5.6682]
[1748346016067,9.157e-05,176.36,176.35,6.20354682]
[1748346016760,9.157e-05,176.36,176.35,5.6682]
[1748346017660,9.157e-05,176.36,176.35,6.38167931]
[1748346017866,9.157e-05,176.36,176.35,5.6682]
[1748346018063,1.9502,176.46,176.34,1.19649386]
[1748346018366,1.9502,176.46,176.38,0.53501394]
[1748346018666,5.6658,176.43,176.4,5.6666]
[1748346019159,0.03787933,176.43,176.4,5.70782159]
[1748346019562,0.03787933,176.43,176.4,0.04122159]
[1748346020068,0.03787933,176.43,176.36,0.53501394]
[1748346020368,5.06665913,176.43,176.34,30.0155136]
[1748346020564,5.06665913,176.43,176.36,5.6681]
[1748346020871,1.8874,176.42,176.36,5.6681]
[1748346021069,1.8874,176.42,176.37,0.04036049]
[1748346021270,5.6675,176.38,176.37,0.04036049]
[1748346022071,5.70794175,176.39,176.37,0.04036049]
[1748346022363,0.04074175,176.39,176.37,0.04036049]
[1748346022671,5.6674,176.38,176.37,0.04036049]
[1748346024774,5.70794175,176.39,176.37,0.04036049]
[1748346025274,0.04074175,176.39,176.37,0.04036049]
[1748346025473,5.70794175,176.39,176.37,0.04036049]